bitfinex-derivatives/quotes_ETHF0:USTF0_20260305
["timestamp","ask_amount","ask_price","bid_price","bid_amount"]
[1772708647704,0.00353143,2153.4,2152.5,2.65412299]
[1772708647705,2.52385751,2153.0,2152.5,2.65412299]
[1772708649210,2.52385751,2152.8,2152.4,16.40812299]
[1772708649702,14.70282709,2152.8,2152.4,2.65412299]
[1772708650103,12.17896958,2152.8,2152.4,2.65412299]
[1772708650611,2.52385751,2152.7,2152.1,2.65412299]
[1772708650915,2.52385751,2152.7,2152.3,16.44912299]
[1772708651105,14.70282709,2152.8,2152.4,2.65412299]
[1772708651609,2.52385751,2152.7,2152.3,16.44912299]
[1772708651811,2.52385751,2152.7,2152.3,16.46112299]
[1772708652308,2.52385751,2153.3,2152.4,2.88636299]
[1772708652511,11.08197813,2153.3,2152.4,2.88636299]
[1772708653007,2.52385751,2153.2,2152.4,2.88636299]
[1772708653410,2.52385751,2153.0,2152.4,2.88636299]
[1772708654412,13.60583564,2152.9,2152.4,2.88636299]
[1772708654612,2.52385751,2152.9,2152.4,2.88636299]
[1772708654807,2.52385751,2153.2,2152.4,2.88636299]
[1772708655105,5.52451886,2153.1,2152.4,2.88636299]
[1772708655313,8.04837637,2153.1,2152.4,2.88636299]
[1772708655510,2.52385751,2153.0,2152.4,2.88636299]
[1772708655706,2.52385751,2152.9,2152.4,2.88636299]
[1772708655907,2.52385751,2153.2,2152.4,2.88636299]
[1772708656109,5.52457773,2153.1,2152.4,2.88636299]
[1772708656311,8.04843524,2153.1,2152.4,2.88636299]
[1772708656512,11.08197813,2153.0,2152.4,2.88636299]
[1772708656817,8.11885173,2153.3,2152.4,2.88636299]
[1772708658012,2.98176239,2153.2,2152.5,13.873]
[1772708658410,2.98986434,2153.0,2152.4,14.47035883]
[1772708659018,2.98986434,2153.0,2152.5,0.33898977]
[1772708659517,8.1986283,2152.9,2152.5,13.888]
[1772708659711,3.06224192,2153.1,2152.5,14.22605697]
[1772708660719,3.06224192,2153.1,2152.5,14.16679672]
[1772708660917,3.06224192,2152.9,2152.4,0.23224]
[1772708661217,3.06224192,2152.9,2152.6,13.903]
[1772708661419,3.06224192,2153.3,2152.6,13.903]
[1772708661719,3.06224192,2153.2,2152.5,13.911]
[1772708662316,3.06224192,2153.2,2152.5,14.14989143]
[1772708663524,3.06224192,2153.2,2152.5,13.911]
[1772708663719,3.06224192,2153.2,2152.5,14.12955092]
[1772708663919,3.06224192,2153.2,2152.5,13.911]
[1772708664426,3.06224192,2153.2,2152.5,13.934]
[1772708664621,3.06224192,2153.2,2152.4,0.44515535]
[1772708664821,3.06224192,2153.0,2152.5,13.938]
[1772708665523,3.06224192,2152.8,2152.5,13.944]
[1772708666225,5.13638638,2152.8,2152.5,14.20928484]
[1772708666524,5.13638638,2152.8,2152.5,13.944]
[1772708666726,5.13638638,2152.8,2152.5,14.20928484]
[1772708668128,8.16211927,2152.8,2152.5,13.944]
[1772708668527,3.02573289,2152.7,2152.5,13.944]
[1772708668728,3.02573289,2152.7,2152.4,0.23224]
[1772708668928,3.02573289,2152.7,2152.5,13.969]
[1772708669324,5.13638638,2152.8,2152.5,13.969]
[1772708669325,5.13638638,2152.8,2152.5,14.14716585]
[1772708669522,4.48977085,2152.8,2152.6,0.17816585]
[1772708669720,4.27096355,2152.8,2152.6,0.17816585]
[1772708669928,4.27096355,2152.8,2152.5,13.969]
[1772708670228,4.27096355,2152.8,2152.5,14.00678052]
[1772708670428,4.27096355,2152.8,2152.6,0.01644393]
[1772708671023,4.27096355,2152.8,2152.5,13.98544393]
[1772708671429,3.02922966,2152.7,2152.5,13.969]
[1772708671630,3.02922966,2152.7,2152.5,13.99]
[1772708671830,4.27096355,2152.8,2152.5,13.99]
[1772708672027,3.02922966,2152.7,2152.3,13.993]
[1772708672234,3.79663355,2152.8,2152.4,0.01946149]
[1772708672431,3.79663355,2152.8,2152.3,14.24470149]
[1772708672432,3.03614724,2152.7,2152.3,14.24470149]
[1772708672927,6.74103632,2152.6,2152.3,14.22524]
[1772708673832,6.74103632,2152.6,2152.3,13.993]
[1772708674829,6.83278079,2152.6,2152.3,14.022]
[1772708675030,6.83278079,2152.6,2152.1,0.01946149]
[1772708675328,6.83278079,2152.6,2152.3,14.025]
[1772708675933,3.02573289,2152.5,2152.1,0.01946149]
[1772708676133,3.02573289,2152.5,2152.2,14.035]
[1772708676530,6.82236644,2152.4,2152.2,14.035]
[1772708676730,3.02573289,2152.4,2152.0,40.8]
[1772708676932,6.82236644,2152.4,2152.1,14.044]
[1772708678331,3.02573289,2153.2,2152.2,0.25694636]
[1772708678536,3.02573289,2152.8,2152.3,0.25694636]
[1772708679931,3.02573289,2152.8,2152.2,0.23225]
[1772708680125,3.02854279,2152.6,2152.2,0.48001691]
[1772708680327,3.02854279,2152.4,2152.2,0.23225]
[1772708680936,6.18431187,2152.4,2152.2,14.23850553]
[1772708681233,3.0285428,2152.3,2152.0,40.8]
[1772708681628,3.0285428,2152.3,2152.1,14.107]
[1772708681833,3.0285428,2152.1,2152.0,14.111]
[1772708682231,3.0285428,2152.1,2152.0,13.69730001]
[1772708682432,8.86741142,2152.9,2151.8,0.82383037]
[1772708682738,3.02573289,2152.7,2151.8,0.82383037]
[1772708682937,3.02573289,2152.5,2151.8,0.82383037]
[1772708683132,3.02573289,2152.5,2151.8,0.00572457]
[1772708683641,3.02573289,2152.3,2151.8,0.00572457]
[1772708683844,3.02573289,2152.3,2151.8,14.14372457]
[1772708684134,6.18150197,2152.2,2151.8,14.94090194]
[1772708684335,3.02573289,2152.2,2151.8,14.14372457]
[1772708684540,3.02573289,2152.2,2151.8,0.00572457]
[1772708684736,3.02573289,2152.0,2151.8,0.00572457]
[1772708685144,3.02573289,2152.0,2151.3,0.83638896]
[1772708685145,3.15576908,2151.9,2151.3,0.83638896]
[1772708685445,3.15576908,2151.9,2151.6,0.84211353]
[1772708686139,6.18150197,2151.9,2151.6,0.00414957]
[1772708686345,6.18150197,2151.9,2151.6,14.17914957]
[1772708686346,3.02573289,2151.8,2151.6,14.17914957]
[1772708686539,3.02947114,2151.8,2151.3,14.41035]
[1772708686739,3.02947114,2151.8,2151.3,14.178]
[1772708686940,3.02573289,2151.6,2151.3,14.178]
[1772708687535,2.94659763,2151.7,2151.4,0.80767834]
[1772708687740,2.92346908,2151.7,2151.4,0.80767834]
[1772708688342,5.94920197,2151.7,2151.4,14.205]
[1772708688744,3.02573289,2151.6,2151.3,0.7844382]
[1772708689047,2.9826745,2151.6,2151.3,14.21840212]
[1772708689546,2.37441275,2151.8,2151.4,0.77946649]
[1772708690448,2.37899792,2151.8,2151.4,0.77946649]
[1772708690846,2.37899792,2151.8,2151.3,0.00540212]
[1772708691146,0.00458517,2151.8,2151.3,1.36811981]
[1772708691347,2.98725967,2151.8,2151.3,1.36811981]
[1772708691543,2.9826745,2152.5,2151.5,2.04977608]
[1772708691850,2.9826745,2152.3,2151.6,11.13572579]
[1772708692151,2.9826745,2152.3,2151.4,3.12231254]
[1772708692447,2.98758799,2152.3,2151.5,2.88997254]
[1772708694044,2.98758799,2152.3,2151.6,3.12229254]
[1772708694744,2.98758799,2152.3,2151.7,14.311]
[1772708695247,2.98758799,2152.3,2151.6,3.12229254]
[1772708695449,2.98758799,2152.3,2151.6,14.55332]
[1772708695749,2.98758799,2152.3,2151.6,0.23232]
[1772708696545,2.98758799,2152.3,2151.3,2.89537466]
[1772708696746,2.98758799,2152.3,2151.4,14.341]
[1772708697441,2.98758799,2152.3,2151.5,3.12230254]
[1772708697646,2.9826745,2152.7,2151.5,2.88997254]
[1772708697848,2.9826745,2152.7,2151.9,3.12226254]
[1772708698450,2.9826745,2152.7,2151.9,2.88997254]
[1772708698650,2.9826745,2152.5,2151.5,2.88997254]
[1772708698848,2.9826745,2152.5,2151.8,2.88997254]
[1772708700157,2.9826745,2152.5,2151.7,3.12227254]
[1772708700354,0.00465393,2152.7,2151.7,3.12227254]
[1772708700355,2.9826745,2152.6,2151.7,3.12227254]
[1772708700555,0.00465393,2152.7,2152.2,2.88997254]
[1772708700855,2.9826745,2153.1,2152.3,2.88997254]
[1772708701252,2.9826745,2153.1,2152.2,2.88997254]
[1772708701654,2.9826745,2153.3,2152.4,2.88997254]
[1772708702049,2.98644913,2153.3,2152.4,2.88997254]
[1772708702260,2.9826745,2153.1,2152.1,2.88997254]
[1772708702460,2.9826745,2152.9,2152.1,2.88997254]
[1772708703856,2.9826745,2152.7,2152.0,40.8]
[1772708704056,2.9826745,2152.7,2152.1,2.88997254]
[1772708705761,5.84167853,2153.2,2152.1,2.88997254]
[1772708705762,2.9826745,2153.1,2152.1,2.88997254]
[1772708705962,8.77281362,2153.0,2152.1,2.88997254]
[1772708706166,5.35278037,2152.9,2152.1,2.88997254]
[1772708706355,2.9826745,2152.8,2152.1,2.88997254]
[1772708706560,5.35371976,2152.7,2152.1,2.88997254]
[1772708707056,2.9826745,2152.8,2152.1,2.88997254]
[1772708707365,8.33635882,2152.7,2152.1,2.88997254]
[1772708707564,2.9826745,2152.7,2152.1,2.88997254]
[1772708707759,2.9826745,2153.0,2152.1,2.88997254]
[1772708707961,5.35352084,2152.9,2152.3,2.88997254]
[1772708708159,8.33619534,2152.9,2152.3,2.88997254]
[1772708708360,2.9826745,2152.9,2152.3,2.88997254]
[1772708709066,2.9826745,2152.9,2152.0,14.496]
[1772708709260,2.9826745,2152.7,2152.0,2.88997254]
[1772708709465,2.9826745,2152.7,2152.1,2.88997254]
[1772708709665,0.00377463,2153.3,2151.5,2.88997254]
[1772708709666,2.9826745,2152.5,2151.5,2.88997254]
[1772708710166,2.9826745,2152.3,2151.7,2.88997254]
[1772708711160,2.9826745,2152.3,2151.6,17.39997254]
[1772708711461,2.9826745,2152.3,2151.6,2.88997254]
[1772708712067,2.9826745,2152.3,2151.4,55.329]
[1772708712367,2.9826745,2152.3,2151.5,2.88997254]
[1772708712971,3.88374535,2152.7,2151.3,0.23775212]
[1772708712972,2.9826745,2152.1,2151.3,0.00540212]
[1772708713565,2.9826745,2152.1,2151.3,2.89537466]
[1772708715063,2.9826745,2152.4,2151.5,2.88997254]
[1772708715368,5.35497458,2152.3,2151.7,2.88997254]
[1772708715765,2.9826745,2152.4,2151.7,2.88997254]
[1772708716167,2.9826745,2152.4,2151.5,2.88997254]
[1772708716668,2.9826745,2152.2,2151.5,2.88997254]
[1772708716868,2.9826745,2152.2,2151.4,3.12231254]
[1772708718074,2.9826745,2152.2,2151.4,2.88997254]
[1772708718368,2.9826745,2152.0,2151.3,0.00540212]
[1772708718568,3.1406745,2152.0,2151.3,0.00540212]
[1772708718767,2.88828688,2151.8,2151.3,0.00540212]
[1772708718972,2.88828688,2151.6,2151.0,0.77130718]
[1772708719165,2.88828688,2151.6,2151.0,3.68614706]
[1772708719672,2.88828688,2151.6,2151.0,0.77130718]
[1772708719872,2.89269179,2151.6,2151.0,0.77595219]
[1772708720366,2.89269179,2151.6,2151.0,3.69079207]
[1772708720568,2.89269179,2151.6,2151.0,0.77595219]
[1772708721172,2.89269179,2151.6,2151.0,3.69079207]
[1772708721574,2.89269179,2151.6,2151.0,0.77595219]
[1772708721872,2.89269179,2151.6,2150.6,43.71483988]
[1772708722171,2.89269179,2151.6,2150.6,2.91483988]
[1772708722873,2.89269179,2151.6,2150.6,2.91879041]
[1772708725065,2.88828688,2151.4,2150.6,2.91879041]
[1772708729371,2.85242549,2152.1,2151.0,3.02196951]
[1772708729577,2.85242549,2151.9,2150.7,3.02196951]
[1772708729776,2.85242549,2151.7,2150.6,0.23638053]
[1772708729976,2.85242549,2151.7,2150.6,3.25835004]
[1772708730272,2.85242549,2151.5,2150.6,3.25835004]
[1772708730573,2.85242549,2151.5,2150.6,3.02592004]
[1772708733773,3.01042549,2151.6,2150.6,3.02592004]
[1772708734677,0.158,2151.6,2150.8,3.02196951]
[1772708734877,0.00513833,2151.7,2151.0,3.02196951]
[1772708735375,2.85756382,2151.7,2150.8,3.02196951]
[1772708735872,2.85242549,2151.5,2150.8,3.02196951]
[1772708736079,2.85242549,2151.5,2150.6,3.02592004]
[1772708736374,2.85242549,2151.5,2150.6,0.00395053]
[1772708736879,2.85242549,2151.5,2150.3,3.02196951]
[1772708736880,2.85242549,2151.3,2150.3,3.02196951]
[1772708737076,2.85242549,2151.3,2149.9,0.2325]
[1772708737077,2.85242549,2151.1,2150.0,3.02196951]
[1772708737272,2.85242549,2151.1,2150.1,3.02196951]
[1772708737674,2.85242549,2151.1,2150.1,3.02588376]
[1772708738175,2.85242549,2151.1,2150.1,0.00391425]
[1772708738473,2.85242549,2150.9,2149.8,3.02196951]
[1772708738673,5.46790333,2150.8,2149.8,3.02196951]
[1772708738872,8.32032882,2150.8,2149.8,3.02196951]
[1772708739076,2.85242549,2150.8,2149.8,3.02196951]
[1772708739572,2.85242549,2150.8,2149.8,3.02552623]
[1772708739975,2.85242549,2151.1,2150.0,3.02196951]
[1772708740876,2.85242549,2150.9,2150.0,3.02196951]
[1772708741276,5.47116959,2150.8,2150.0,3.02196951]
[1772708741474,2.85242549,2150.9,2150.0,3.02196951]
[1772708742175,2.85242549,2150.7,2149.8,3.02552623]
[1772708744083,2.85242549,2150.5,2149.8,0.00355672]
[1772708744477,2.85242549,2150.3,2149.8,0.00355672]
[1772708745176,2.85242549,2150.1,2149.4,3.02196951]
[1772708745378,2.85242549,2150.1,2149.1,0.1]
[1772708745676,2.85242549,2150.1,2148.9,0.23261]
[1772708745677,2.85242549,2149.9,2148.9,3.02196951]
[1772708745877,2.85242549,2149.7,2148.9,3.02196951]
[1772708746077,2.85710568,2149.7,2148.9,3.02574352]
[1772708746277,2.85710568,2149.7,2148.5,3.02196951]
[1772708746485,2.85242549,2149.4,2148.3,3.02196951]
[1772708746681,2.85242549,2149.2,2148.3,3.02196951]
[1772708747274,2.85242549,2149.2,2148.3,3.02665408]
[1772708747477,2.85242549,2149.0,2147.8,3.02196951]
[1772708747674,2.85242549,2149.0,2148.0,3.02196951]
[1772708747675,10.20542549,2149.0,2148.0,3.02196951]
[1772708748085,2.85242549,2148.9,2148.0,3.02196951]
[1772708748684,2.85242549,2148.9,2148.0,3.02613954]
[1772708750782,2.67707247,2149.2,2148.2,2.75922904]
[1772708750987,2.67707247,2149.4,2148.4,2.75922904]
[1772708751187,2.67707247,2149.6,2148.6,2.75922904]
[1772708751380,2.67707247,2149.6,2148.8,2.75922904]
[1772708751687,2.67707247,2149.6,2148.6,2.75922904]
[1772708751988,0.00468019,2149.7,2148.6,2.99186904]
[1772708752186,0.23247,2150.3,2148.8,2.99184904]
[1772708752187,2.67707247,2150.0,2148.8,2.99184904]
[1772708753181,2.68185193,2150.0,2148.8,2.99184904]
[1772708753483,2.68185193,2150.0,2149.3,2.75922904]
[1772708753679,0.00477946,2150.0,2149.3,2.75922904]
[1772708753986,0.00477946,2150.0,2149.3,40.8]
[1772708753987,2.68185193,2150.0,2149.3,40.8]
[1772708754186,2.68185193,2150.0,2149.3,43.55922904]
[1772708754384,2.68185193,2150.0,2148.7,14.95]
[1772708754385,2.68185193,2150.0,2148.8,2.75922904]
[1772708754688,2.67707247,2149.8,2148.6,2.75922904]
[1772708754883,2.67707247,2149.7,2148.6,2.75922904]
[1772708755884,2.67707247,2149.7,2148.8,2.75922904]
[1772708757692,2.67707247,2149.9,2148.8,2.75922904]
[1772708757989,0.00477946,2150.0,2148.4,2.75922904]
[1772708757990,2.67707247,2149.7,2148.4,2.75922904]
[1772708758190,2.67707247,2149.7,2148.6,2.75922904]
[1772708758385,2.67707247,2149.7,2148.8,2.75922904]
[1772708758786,2.67707247,2149.7,2149.0,2.75922904]
[1772708758988,2.67707247,2149.7,2148.8,2.75922904]
[1772708759793,2.67707247,2149.9,2148.8,2.99184904]
[1772708759986,2.67707247,2149.9,2148.9,2.75922904]
[1772708760492,0.00477946,2150.0,2149.1,2.75922904]
[1772708760693,0.00477946,2150.0,2149.3,2.75922904]
[1772708760887,0.00477946,2150.0,2149.5,2.75922904]
[1772708761092,2.67707247,2150.3,2149.5,2.75922904]
[1772708761287,2.67707247,2150.3,2149.4,2.75922904]
[1772708761488,2.67707247,2150.6,2149.6,2.75922904]
[1772708761694,2.67707247,2150.8,2149.8,2.75922904]
[1772708761988,3.88374535,2151.1,2149.8,2.75922904]
[1772708761989,2.67707247,2151.1,2149.8,2.75922904]
[1772708762291,2.68168772,2150.8,2149.8,2.76382415]
[1772708762485,2.67707247,2151.2,2150.2,2.75922904]
[1772708763596,0.0033425,2151.2,2150.4,2.75922904]
[1772708763891,2.68041497,2151.2,2150.4,2.75922904]
[1772708764087,2.68041497,2151.2,2150.4,43.55922904]
[1772708764291,2.68041497,2151.2,2149.8,2.76382415]
[1772708764292,2.67707247,2151.0,2149.8,2.76382415]
[1772708764498,6.56081782,2150.6,2149.4,2.75922904]
[1772708764691,2.67707247,2150.4,2149.4,2.75922904]
[1772708764890,2.67707247,2150.2,2149.4,2.75922904]
[1772708765291,7.382,2150.4,2148.8,2.75922904]
[1772708765292,2.67707247,2150.0,2148.8,2.75922904]
[1772708765494,2.67707247,2150.0,2148.8,2.76390072]
[1772708765695,2.67707247,2150.0,2148.9,2.75922904]
[1772708766094,2.67707247,2149.8,2148.9,2.75922904]
[1772708768699,2.67707247,2149.8,2148.8,40.80467168]
[1772708768700,2.67707247,2149.6,2148.8,0.00467168]
[1772708769095,2.68122951,2149.6,2148.8,0.00467168]
[1772708770301,2.67707247,2149.4,2148.8,0.00467168]
[1772708770801,2.67707247,2149.4,2148.8,2.76390072]
[1772708771798,2.68122951,2149.6,2148.8,2.76390072]
[1772708772195,2.67707247,2149.4,2148.8,0.00467168]
[1772708774608,2.67707247,2149.4,2148.8,2.76390072]
[1772708775010,2.67707247,2149.4,2148.3,43.55922904]
[1772708775211,2.67707247,2149.2,2148.3,43.55922904]
[1772708775406,2.67707247,2149.2,2148.4,2.75922904]
[1772708776010,2.67707247,2149.2,2148.4,2.76399763]
[1772708776913,2.67707247,2149.0,2148.4,0.00476859]
[1772708777208,3.88374535,2149.4,2148.4,2.76399763]
[1772708777512,5.79301539,2149.5,2148.4,2.76399763]
[1772708777513,8.19191048,2149.3,2148.4,2.76399763]
[1772708777809,2.67707247,2149.1,2148.4,0.00476859]
[1772708779215,2.60112044,2148.9,2148.0,2.58364657]
[1772708779908,2.60112044,2148.9,2148.0,2.81635657]
[1772708780209,2.60112044,2148.9,2148.0,2.82189564]
[1772708780606,2.60112044,2148.9,2148.0,2.58918564]
[1772708782308,2.60112044,2148.9,2148.0,0.00553907]
[1772708782511,2.60112044,2148.9,2148.0,2.58918564]
[1772708782912,2.60112044,2148.7,2147.6,2.58364657]
[1772708783212,2.60112044,2148.5,2147.6,2.58364657]
[1772708783715,7.41,2148.4,2147.6,2.58364657]
[1772708783912,2.60112044,2148.3,2147.6,0.00435378]
[1772708784315,2.60112044,2148.1,2146.9,2.81647657]
[1772708784714,2.60112044,2148.1,2147.1,2.81645657]
[1772708784917,2.60112044,2148.1,2147.1,2.58364657]
[1772708785104,2.60112044,2148.1,2147.0,40.8]
[1772708785308,2.60112044,2147.9,2147.0,43.38887818]
[1772708785514,2.60573969,2147.9,2147.0,2.58887818]
[1772708786308,2.60573969,2147.9,2147.0,0.00523161]
[1772708786511,2.60573969,2147.9,2146.8,2.58364657]
[1772708787417,2.58483165,2147.9,2147.0,2.43369907]
[1772708787617,2.5802124,2147.8,2146.8,2.43727657]
[1772708788709,0.00461925,2147.9,2146.9,2.43369907]
[1772708788909,2.58483165,2147.9,2147.1,2.43369907]
[1772708789813,2.58483165,2147.9,2146.8,2.43727657]
[1772708790517,2.5802124,2147.8,2146.8,2.43727657]
[1772708790718,7.43061925,2147.9,2147.0,2.43369907]
[1772708790719,0.00461925,2147.9,2147.0,2.43369907]
[1772708791217,2.58483165,2147.9,2147.0,2.43369907]
[1772708794421,2.58483165,2147.9,2147.0,1.68219907]
[1772708794619,2.5802124,2147.7,2146.9,2.43369907]
[1772708795019,2.58483165,2147.9,2146.9,2.43369907]
[1772708795323,2.58483165,2147.9,2146.8,40.8035775]
[1772708795324,2.58483165,2147.9,2147.0,2.66651907]
[1772708795624,2.58483165,2147.9,2147.0,2.43369907]
[1772708795819,2.58483165,2147.9,2146.8,43.23727657]
[1772708796024,2.58483165,2147.9,2146.8,2.43727657]
[1772708796421,2.58483165,2147.9,2147.0,2.43369907]
[1772708796923,2.58483165,2147.9,2146.8,2.43727657]
[1772708797717,2.58483165,2147.9,2146.8,2.67011657]
[1772708798219,2.5802124,2147.7,2146.8,2.43727657]
[1772708799420,7.13849923,2148.4,2146.8,2.43727657]
[1772708799421,2.5802124,2148.5,2147.6,2.43369907]
[1772708800018,2.5802124,2148.5,2147.4,2.43369907]
[1772708800416,2.5802124,2148.4,2147.3,15.306]
[1772708800623,2.5802124,2148.3,2147.4,2.43369907]
[1772708800927,2.58456241,2148.5,2147.4,2.66646907]
[1772708801321,0.00435001,2148.5,2147.4,2.66646907]
[1772708801727,2.58456241,2148.5,2147.6,2.43369907]
[1772708801930,2.58456241,2148.5,2147.8,2.43369907]
[1772708802623,2.58456241,2148.5,2147.7,40.8]
[1772708802826,2.58456241,2148.5,2147.6,2.43369907]
[1772708803222,2.58456241,2148.5,2147.6,43.23369907]
[1772708803622,2.58456241,2148.5,2147.4,2.43369907]
[1772708804029,2.58456241,2148.5,2147.6,2.43369907]
[1772708804324,2.58456241,2148.5,2147.5,2.66646907]
[1772708804731,2.58456241,2148.5,2147.5,2.43369907]
[1772708804925,2.5802124,2148.3,2147.1,2.43369907]
[1772708805133,0.23701001,2148.5,2147.1,2.43369907]
[1772708805134,2.5802124,2148.1,2147.1,2.43369907]
[1772708807128,2.5802124,2148.1,2147.0,0.23282]
[1772708807429,2.5802124,2147.9,2146.9,2.43369907]
[1772708807630,2.5802124,2147.7,2146.9,2.43369907]
[1772708808024,2.5802124,2147.7,2146.8,2.43727657]
[1772708809932,2.41828409,2147.5,2146.8,2.43727657]
[1772708810124,2.41828409,2147.5,2146.9,2.26376802]
[1772708810725,2.41828409,2147.5,2146.8,0.0035775]
[1772708811233,13.44272539,2148.1,2146.8,2.26734552]
[1772708811234,2.41828409,2147.3,2146.8,2.26734552]
[1772708811430,2.41828409,2147.5,2146.8,2.26734552]
[1772708811627,5.45864221,2147.4,2146.8,2.26734552]
[1772708811830,2.41828409,2147.3,2146.8,0.0035775]
[1772708812130,2.41828409,2147.5,2146.8,2.26734552]
[1772708812322,5.46187722,2147.4,2146.8,2.26734552]
[1772708812724,2.41828409,2147.3,2146.8,2.26734552]
[1772708812929,2.41828409,2147.7,2146.8,2.26734552]
[1772708813128,7.8800777,2147.6,2146.8,2.26734552]
[1772708813328,2.41828409,2147.6,2146.8,2.26734552]
[1772708813532,2.41828409,2147.6,2146.8,2.50018552]
[1772708813730,2.41828409,2148.0,2146.8,2.50018552]
[1772708813932,7.82232516,2147.9,2146.8,2.50018552]
[1772708814130,5.40404107,2147.8,2146.8,2.50018552]
[1772708814332,2.41828409,2147.9,2146.8,2.50018552]
[1772708814833,2.41828409,2148.1,2146.8,2.50018552]
[1772708815035,13.19701539,2148.4,2146.8,2.50018552]
[1772708815036,7.82263651,2148.0,2146.8,2.50018552]
[1772708815235,2.41828409,2148.4,2147.3,2.26376802]
[1772708815434,2.41828409,2148.2,2147.4,2.26376802]
[1772708815733,2.41828409,2148.0,2147.4,2.49654802]
[1772708817036,2.41828409,2148.4,2147.4,2.49654802]
[1772708817235,5.81781829,2148.3,2147.4,2.49654802]
[1772708817431,5.40324279,2148.3,2147.4,2.49654802]
[1772708817632,2.41828409,2148.2,2147.4,2.49654802]
[1772708817834,7.8210684,2148.1,2147.4,2.49654802]
[1772708818135,2.41828409,2148.4,2147.4,2.49654802]
[1772708818334,2.41828409,2148.2,2147.4,2.49654802]
[1772708818532,2.41828409,2148.2,2147.5,17.63476802]
[1772708818731,2.41828409,2148.2,2147.5,2.26376802]
[1772708819730,2.41828409,2148.2,2147.3,17.63576802]
[1772708819935,2.41828409,2148.0,2147.4,2.26376802]
[1772708820134,0.00435001,2148.5,2147.4,2.26376802]
[1772708820336,2.83273883,2148.4,2147.4,2.26376802]
[1772708820537,2.41828409,2148.2,2147.4,2.26376802]
[1772708822338,2.4226341,2148.5,2147.4,2.26376802]
[1772708822539,2.41828409,2148.3,2147.6,2.26376802]
[1772708822939,7.8051804,2148.2,2147.6,2.26376802]
[1772708823139,2.41828409,2148.2,2147.6,2.26376802]
[1772708823542,2.41828409,2148.2,2147.4,2.26376802]
[1772708824532,2.41828409,2148.0,2147.1,2.26376802]
[1772708824737,2.41828409,2148.0,2147.2,2.26376802]
[1772708825541,2.41828409,2147.9,2147.2,2.26376802]
[1772708825930,2.41828409,2147.9,2147.0,0.23281]
[1772708825931,2.41828409,2147.9,2147.0,2.49657802]
[1772708826332,2.41828409,2147.7,2147.0,2.26376802]
[1772708828541,2.41828409,2148.0,2147.0,2.26376802]
[1772708828741,2.41828409,2148.0,2147.2,2.26376802]
[1772708829742,2.41828409,2147.8,2147.2,2.26376802]
[1772708830348,5.7973654,2148.5,2147.2,2.26376802]
[1772708830648,2.83283979,2148.4,2147.2,2.26376802]
[1772708830848,2.41828409,2148.2,2147.2,2.26376802]
[1772708831043,2.41828409,2148.0,2147.2,2.26376802]
[1772708831342,2.41828409,2147.8,2146.8,2.26734552]
[1772708831547,2.41828409,2147.6,2146.8,2.26734552]
[1772708831747,2.41828409,2148.0,2146.8,2.26734552]
[1772708831950,2.41828409,2147.8,2146.8,2.26734552]
[1772708832245,2.41828409,2147.6,2146.2,2.26376802]
[1772708832456,2.41828409,2147.4,2146.2,2.26376802]
[1772708832745,2.41828409,2147.2,2146.4,2.26376802]
[1772708833048,2.41828409,2147.2,2146.2,2.26376802]
[1772708833244,2.41828409,2147.2,2146.2,2.26813652]
[1772708833440,2.41828409,2147.0,2146.3,58.46976802]
[1772708833639,2.41828409,2147.0,2146.4,2.26376802]
[1772708834042,14.51749923,2148.2,2146.4,2.26376802]
[1772708834043,2.41828409,2147.6,2146.4,2.26376802]
[1772708834338,2.41828409,2147.4,2146.6,2.26376802]
[1772708834541,2.41828409,2147.2,2146.6,2.26376802]
[1772708834739,2.41828409,2147.2,2146.4,2.26376802]
[1772708835551,2.41828409,2147.2,2146.2,43.06813652]
[1772708835746,2.41828409,2147.2,2146.3,2.26376802]
[1772708836051,2.41828409,2147.0,2146.3,2.26376802]
[1772708839448,2.41828409,2147.0,2145.8,3.14936126]
[1772708839449,2.20538352,2146.8,2145.7,2.86787387]
[1772708839649,5.72525,2147.9,2145.8,2.09656669]
[1772708839650,2.20538352,2146.6,2145.8,2.09656669]
[1772708839954,2.20538352,2146.6,2145.7,0.77130718]
[1772708840252,2.20538352,2146.4,2145.7,0.69007194]
[1772708840453,2.21110817,2146.4,2145.7,0.69599071]
[1772708841245,2.21110817,2146.4,2145.8,2.09656669]
[1772708841654,2.20538352,2146.2,2145.7,0.69599071]
[1772708841857,2.21110817,2146.4,2145.8,2.09656669]
[1772708842352,2.21110817,2146.4,2145.7,0.69599071]
[1772708844050,2.20538352,2146.6,2145.8,2.09656669]
[1772708844254,2.20538352,2147.0,2146.2,2.09656669]
[1772708844955,2.20538352,2147.0,2146.1,2.09656669]
[1772708845655,2.21004108,2147.0,2146.2,2.09656669]
[1772708845850,0.00465756,2147.0,2146.4,2.09656669]
[1772708846051,2.20538352,2147.7,2146.4,2.09656669]
[1772708846352,2.20538352,2147.5,2146.4,2.09656669]
[1772708847049,2.21085859,2147.5,2146.6,2.09656669]
[1772708848853,0.00547507,2147.5,2146.8,2.0810593]
[1772708849853,2.07102846,2147.5,2146.8,2.0810593]
[1772708850054,2.07102846,2147.5,2146.8,42.8810593]
[1772708850252,2.06555339,2147.7,2146.9,2.0810593]
[1772708851461,2.07089774,2147.7,2146.9,2.0810593]
[1772708853465,2.07089774,2147.7,2147.0,2.0810593]
[1772708853863,2.07089774,2147.7,2146.8,40.8]
[1772708853864,2.06555339,2147.5,2146.4,2.0810593]
[1772708854360,2.06555339,2147.3,2146.5,2.0810593]
[1772708854766,2.06555339,2147.5,2146.5,2.0810593]
[1772708854968,2.06555339,2147.5,2146.7,2.0810593]
[1772708855765,2.06555339,2147.5,2146.7,17.6090593]
[1772708856266,2.06555339,2147.5,2146.8,2.0810593]
[1772708856467,2.06555339,2147.5,2146.5,2.0810593]
[1772708856661,2.06555339,2147.3,2146.5,2.0810593]
[1772708856863,2.06555339,2147.5,2146.5,2.3139293]
[1772708857057,2.06555339,2147.3,2146.5,2.3139293]
[1772708857258,2.06555339,2147.3,2146.6,15.539]
[1772708857458,2.06555339,2147.3,2146.6,17.6200593]
[1772708857662,2.06555339,2147.3,2146.6,2.0810593]
[1772708858465,2.06555339,2147.3,2146.3,2.0810593]
[1772708858661,2.06555339,2147.3,2146.5,2.0810593]
[1772708858864,2.06555339,2147.3,2146.0,2.3139793]
[1772708859065,2.06555339,2147.1,2146.2,2.0810593]
[1772708859669,2.06555339,2147.1,2146.3,17.6370593]
[1772708860067,5.75565726,2147.0,2146.0,2.3139793]
[1772708860262,2.06555339,2146.9,2146.0,2.3139793]
[1772708860463,2.06555339,2147.1,2146.0,2.3139793]
[1772708860664,5.81375449,2147.4,2146.5,2.0810593]
[1772708860665,5.95167417,2147.4,2146.5,2.0810593]
[1772708860973,2.06555339,2147.2,2146.6,2.0810593]
[1772708863176,2.07089774,2147.7,2146.8,2.0810593]
[1772708863366,5.75678509,2147.6,2147.0,2.0810593]
[1772708863574,0.00534435,2147.7,2147.2,2.0810593]
[1772708863770,3.88612078,2148.2,2147.2,2.0810593]